bitfinex-derivatives/quotes_BTCF0:USTF0_20251225
["timestamp","ask_amount","ask_price","bid_price","bid_amount"]
[1766642821734,1.45436,87760.0,87719.0,0.03]
[1766642821939,0.0114033,87764.0,87719.0,0.03]
[1766642821940,0.0114033,87764.0,87728.0,0.0114079]
[1766642822139,0.05708,87757.0,87728.0,0.0984879]
[1766642822346,0.0114033,87764.0,87728.0,0.0984879]
[1766642822656,0.011405,87752.0,87731.0,0.0114075]
[1766642822839,0.00017094,87750.0,87733.0,0.00017094]
[1766642823040,0.00017094,87750.0,87733.0,0.03017094]
[1766642823244,0.0114038,87760.0,87733.0,0.03017094]
[1766642824248,0.00017094,87755.0,87733.0,0.03017094]
[1766642825150,9.4e-07,87755.0,87733.0,0.03017094]
[1766642825351,9.4e-07,87755.0,87738.0,0.0114066]
[1766642825551,9.4e-07,87755.0,87738.0,0.0414066]
[1766642825852,9.4e-07,87755.0,87738.0,0.0610866]
[1766642826049,0.00227862,87773.0,87746.0,0.0114055]
[1766642826243,0.0114028,87768.0,87749.0,0.0114052]
[1766642826549,0.0058,87767.0,87749.0,0.0414052]
[1766642826750,0.0114028,87768.0,87749.0,0.0414052]
[1766642827055,0.00017094,87767.0,87750.0,0.00017094]
[1766642827351,0.0172023,87772.0,87750.0,0.04157604]
[1766642828153,0.00017088,87770.0,87750.0,0.04157604]
[1766642828950,0.00017088,87770.0,87752.0,0.0114047]
[1766642829155,0.00017088,87770.0,87752.0,0.0414047]
[1766642842380,0.00017088,87770.0,87754.0,0.0114045]
[1766642842579,0.00017088,87770.0,87754.0,0.0414045]
[1766642844281,0.01157348,87770.0,87754.0,0.0414045]
[1766642844483,0.01157348,87770.0,87754.0,0.03]
[1766642849987,0.00017088,87770.0,87754.0,0.03]
[1766642850182,0.01157348,87770.0,87754.0,0.03]
[1766642851188,0.01157348,87770.0,87755.0,0.0114044]
[1766642851389,0.01157348,87770.0,87755.0,0.03]
[1766642851985,0.0114028,87768.0,87755.0,0.03]
[1766642853491,0.00017088,87770.0,87755.0,0.03]
[1766642854193,0.00017088,87770.0,87755.0,0.0414044]
[1766642856183,0.0114026,87769.0,87755.0,0.03]
[1766642859199,0.00017088,87770.0,87755.0,0.03]
[1766642861086,0.011403,87767.0,87755.0,0.03]
[1766642863994,0.0114037,87761.0,87750.0,0.00017094]
[1766642864300,0.0114039,87760.0,87750.0,0.01017094]
[1766642864691,0.0114035,87763.0,87750.0,0.01017094]
[1766642865090,0.02496,87765.0,87750.0,0.02157594]
[1766642865388,0.02496,87765.0,87752.0,0.0114047]
[1766642865590,0.02496,87765.0,87752.0,0.0414047]
[1766642867310,0.02496,87765.0,87752.0,0.03]
[1766642868002,0.0114028,87768.0,87752.0,0.03]
[1766642868297,0.011403,87766.0,87752.0,0.03]
[1766642870201,0.03108,87767.0,87752.0,0.0414047]
[1766642871988,0.0424829,87767.0,87752.0,0.03]
[1766642873304,0.0114029,87767.0,87752.0,0.03]
[1766642873513,0.0546429,87767.0,87752.0,0.03]
[1766642873697,0.0666429,87767.0,87752.0,0.03]
[1766642873898,0.0114029,87767.0,87752.0,0.03]
[1766642874298,0.01244,87766.0,87752.0,0.03]
[1766642874601,0.0114029,87767.0,87752.0,0.03]
[1766642875010,0.0337229,87767.0,87752.0,0.03]
[1766642875305,0.04444,87767.0,87752.0,0.03]
[1766642875501,0.05504,87767.0,87752.0,0.03]
[1766642875703,0.0114031,87766.0,87752.0,0.03]
[1766642876306,0.05708,87767.0,87752.0,0.03]
[1766642876606,0.05708,87766.0,87752.0,0.03]
[1766642877897,0.05708,87766.0,87752.0,0.0414048]
[1766642878097,0.05708,87766.0,87752.0,0.03]
[1766642878098,0.0684831,87766.0,87752.0,0.03]
[1766642880808,0.0114033,87764.0,87752.0,0.03]
[1766642884315,0.05708,87766.0,87752.0,0.03]
[1766642885413,0.0114031,87765.0,87752.0,0.03]
[1766642886113,0.05708,87766.0,87752.0,0.03]
[1766642889113,0.05708,87765.0,87752.0,0.0414048]
[1766642893407,0.05708,87765.0,87752.0,0.03]
[1766642893713,0.05708,87769.0,87753.0,0.0114047]
[1766642893911,0.05708,87769.0,87753.0,0.0414047]
[1766642896715,0.0684827,87769.0,87753.0,0.03]
[1766642896913,0.0114034,87763.0,87753.0,0.03]
[1766642897209,0.0114031,87766.0,87753.0,0.03]
[1766642898814,0.0684827,87769.0,87753.0,0.03]
[1766642899919,0.05708,87769.0,87754.0,0.0114045]
[1766642900116,0.05708,87769.0,87754.0,0.03]
[1766642901317,0.0114028,87768.0,87754.0,0.03]
[1766642911026,0.03788,87767.0,87754.0,0.03]
[1766642919028,0.00017088,87770.0,87754.0,0.03]
[1766642919330,0.04156,87769.0,87754.0,0.03]
[1766642919832,0.0529627,87769.0,87754.0,0.03]
[1766642920330,0.0114029,87767.0,87754.0,0.03]
[1766642921731,0.04156,87769.0,87754.0,0.03]
[1766642921732,0.0114032,87765.0,87754.0,0.03]
[1766642922032,0.0114035,87763.0,87754.0,0.03]
[1766642922225,0.0114028,87768.0,87754.0,0.01]
[1766642922420,0.04156,87769.0,87754.0,0.01]
[1766642923028,0.0114036,87762.0,87754.0,0.01]
[1766642926523,0.0114032,87765.0,87754.0,0.01]
[1766642936350,0.0114028,87768.0,87754.0,0.01]
[1766642936860,0.03096,87769.0,87754.0,0.01]
[1766642937036,0.03096,87769.0,87750.0,0.00017094]
[1766642937343,0.0114042,87757.0,87750.0,0.03017094]
[1766642939644,0.04104051,87766.0,87736.0,0.04094832]
[1766642939845,0.0114054,87748.0,87736.0,0.03]
[1766642940046,0.0114057,87745.0,87736.0,0.03]
[1766642940638,0.0114064,87740.0,87736.0,0.02]
[1766642940840,0.0114065,87740.0,87732.0,0.00017094]
[1766642941038,0.0114065,87740.0,87732.0,0.02017094]
[1766642941248,0.0114065,87740.0,87732.0,9.4e-07]
[1766642941653,0.01292,87747.0,87732.0,9.4e-07]
[1766642942156,0.0114061,87743.0,87732.0,9.4e-07]
[1766642943356,0.0114056,87746.0,87732.0,9.4e-07]
[1766642947445,0.01292,87747.0,87733.0,0.0114073]
[1766642947650,0.01292,87747.0,87733.0,0.0414073]
[1766642949660,0.01292,87747.0,87733.0,0.03]
[1766642951260,0.02372,87746.0,87733.0,0.03]
[1766642953957,0.0351256,87746.0,87733.0,0.03]
[1766642961967,0.0114059,87744.0,87733.0,0.03]
[1766642962666,0.0114062,87742.0,87733.0,0.03]
[1766642975376,0.0114058,87745.0,87733.0,0.03]
[1766642980285,0.02372,87746.0,87733.0,0.03]
[1766642980684,0.0351257,87746.0,87733.0,0.03]
[1766642980887,0.02372,87746.0,87733.0,0.03]
[1766642981070,0.00017094,87749.0,87733.0,0.03]
[1766642981071,0.05708,87747.0,87733.0,0.03]
[1766642982275,0.0114058,87745.0,87733.0,0.03]
[1766642983387,0.0114061,87743.0,87733.0,0.03]
[1766642987090,0.0114059,87744.0,87733.0,0.03]
[1766642994087,0.05708,87746.0,87733.0,0.03]
[1766642996696,0.0114058,87745.0,87733.0,0.03]
[1766643001992,0.04104051,87757.0,87733.0,0.03]
[1766643002299,0.0114059,87744.0,87733.0,0.03]
[1766643002891,0.05708,87756.0,87733.0,0.03]
[1766643003097,0.0114055,87747.0,87733.0,0.03]
[1766643011807,0.0114059,87745.0,87733.0,0.03]
[1766643018018,0.011406,87743.0,87733.0,0.03]
[1766643019920,0.04121145,87753.0,87733.0,0.03]
[1766643020111,0.0114057,87746.0,87733.0,0.03]
[1766643032325,0.01157564,87753.0,87736.0,0.0114068]
[1766643032527,0.011405,87751.0,87736.0,0.03]
[1766643036136,0.01157564,87753.0,87737.0,0.0114067]
[1766643036433,0.01157564,87753.0,87737.0,0.03]
[1766643036934,0.00017094,87753.0,87738.0,0.0114066]
[1766643037134,0.00017094,87753.0,87738.0,0.0414066]
[1766643039133,0.00017094,87753.0,87738.0,0.03]
[1766643040235,0.0114048,87752.0,87738.0,0.03]
[1766643042328,0.00017094,87753.0,87738.0,0.03]
[1766643044239,0.0114053,87749.0,87738.0,0.03]
[1766643065356,0.0114056,87747.0,87738.0,0.03]
[1766643065648,0.0114058,87745.0,87738.0,0.03]
[1766643066260,0.04121145,87753.0,87738.0,0.03]
[1766643066553,0.00017094,87753.0,87731.0,0.04317094]
[1766643066752,0.00017094,87753.0,87731.0,0.05317094]
[1766643068253,0.0114059,87745.0,87731.0,0.05317094]
[1766643069551,0.0114059,87745.0,87731.0,0.06457844]
[1766643069756,0.00017094,87753.0,87731.0,0.06457844]
[1766643070053,0.00017094,87753.0,87733.0,0.0114072]
[1766643070254,0.00017094,87753.0,87733.0,0.0414072]
[1766643072360,0.0114053,87749.0,87733.0,0.0414072]
[1766643073758,0.0114053,87749.0,87733.0,0.03]
[1766643075355,0.0114048,87752.0,87733.0,0.0414073]
[1766643075555,0.00017094,87753.0,87733.0,0.03]
[1766643076359,0.04121145,87753.0,87733.0,0.03]
[1766643077054,0.00017094,87753.0,87733.0,0.03]
[1766643077249,0.0114052,87750.0,87733.0,0.03]
[1766643078560,0.0114054,87748.0,87733.0,0.03]
[1766643079659,0.0114061,87742.0,87733.0,0.03]
[1766643080055,0.04104051,87752.0,87733.0,0.03]
[1766643080056,0.0114058,87745.0,87733.0,0.03]
[1766643080446,0.04104051,87752.0,87733.0,0.03]
[1766643081062,0.0114056,87746.0,87733.0,0.03]
[1766643082364,0.0114052,87750.0,87733.0,0.03]
[1766643084166,0.0114052,87750.0,87733.0,0.0414072]
[1766643089170,0.05261615,87753.0,87735.0,0.0114069]
[1766643089466,0.01157564,87753.0,87735.0,0.0414069]
[1766643090171,0.011405,87751.0,87735.0,0.0414069]
[1766643090364,0.011405,87751.0,87735.0,0.03]
[1766643091870,0.011405,87751.0,87736.0,0.0114068]
[1766643092071,0.011405,87751.0,87736.0,0.0414068]
[1766643092469,0.00017094,87753.0,87736.0,0.0414068]
[1766643094173,0.00017094,87753.0,87738.0,0.0114066]
[1766643094472,0.00017094,87753.0,87738.0,0.0414066]
[1766643095475,0.04121145,87753.0,87738.0,0.0414066]
[1766643096475,0.0114049,87752.0,87738.0,0.03]
[1766643097070,0.04121145,87753.0,87738.0,0.03]
[1766643098186,0.05261625,87753.0,87738.0,0.03]
[1766643103878,0.0114051,87751.0,87738.0,0.03]
[1766643104379,0.04121145,87753.0,87738.0,0.03]
[1766643104769,0.00017094,87753.0,87738.0,0.0414066]
[1766643106280,0.00017094,87753.0,87738.0,0.03]
[1766643106777,0.011405,87751.0,87738.0,0.03]
[1766643106983,0.0114053,87749.0,87738.0,0.03]
[1766643108672,0.0114056,87747.0,87738.0,0.03]
[1766643108873,0.0114058,87745.0,87738.0,0.03]
[1766643112274,0.0114061,87743.0,87738.0,0.01]
[1766643113788,0.0114061,87743.0,87738.0,0.03]
[1766643115787,0.04104051,87752.0,87738.0,0.03]
[1766643115788,0.0114056,87746.0,87738.0,0.03]
[1766643125790,0.04104051,87752.0,87738.0,0.03]
[1766643125989,0.0114058,87745.0,87738.0,0.03]
[1766643126890,0.0114054,87748.0,87738.0,0.03]
[1766643127087,0.04104051,87752.0,87731.0,0.00017094]
[1766643127287,0.011407,87736.0,87731.0,0.03000004]
[1766643127483,0.0114073,87734.0,87731.0,4e-08]
[1766643128202,0.0114068,87738.0,87731.0,4e-08]
[1766643128492,0.04104051,87747.0,87731.0,4e-08]
[1766643128791,0.0114069,87737.0,87731.0,4e-08]
[1766643133098,0.0114071,87735.0,87731.0,4e-08]
[1766643135386,0.0114067,87738.0,87731.0,4e-08]
[1766643137193,0.0114074,87733.0,87731.0,4e-08]
[1766643137400,0.0114074,87732.0,87731.0,4e-08]
[1766643138990,0.0114071,87735.0,87731.0,4e-08]
[1766643140099,0.04104051,87750.0,87731.0,4e-08]
[1766643140397,0.05725094,87753.0,87731.0,4e-08]
[1766643141792,0.0114053,87749.0,87731.0,0.01140744]
[1766643142696,0.0114053,87749.0,87733.0,0.0114072]
[1766643142996,0.06865574,87753.0,87733.0,0.0414072]
[1766643143589,0.06865574,87753.0,87733.0,0.03]
[1766643144100,0.06865574,87753.0,87734.0,0.0114071]
[1766643144297,0.06865574,87753.0,87734.0,0.0414071]
[1766643144500,0.06865574,87753.0,87736.0,0.0114068]
[1766643144694,0.06865574,87753.0,87736.0,0.0414068]
[1766643148000,0.05725094,87753.0,87738.0,0.0114066]
[1766643148200,0.05725094,87753.0,87738.0,0.0414066]
[1766643149593,0.00017094,87753.0,87738.0,0.0414066]
[1766643149798,0.0114046,87754.0,87738.0,0.03]
[1766643152594,0.0114046,87754.0,87738.0,0.06492]
[1766643159606,0.0114049,87752.0,87738.0,0.06492]
[1766643173915,0.01157544,87755.0,87738.0,0.0763266]
[1766643175719,0.0114047,87753.0,87738.0,0.0763266]
[1766643178714,0.0114047,87753.0,87738.0,0.06492]
[1766643207444,0.00017094,87755.0,87738.0,0.06492]
[1766643208046,0.00017094,87755.0,87739.0,0.0114065]
[1766643208344,0.00017094,87755.0,87739.0,0.0414065]
[1766643208845,0.04121145,87755.0,87739.0,0.0414065]
[1766643209843,0.00017094,87755.0,87739.0,0.0414065]
[1766643210647,0.04121145,87755.0,87739.0,0.0414065]
[1766643210943,0.00017094,87755.0,87739.0,0.0414065]
[1766643211746,0.04121145,87755.0,87739.0,0.0414065]
[1766643212044,0.00017094,87755.0,87739.0,0.0414065]
[1766643215450,0.0114046,87754.0,87739.0,0.0414065]
[1766643219453,0.0114046,87754.0,87739.0,0.03]
[1766643221456,0.0114046,87754.0,87739.0,0.0414064]
[1766643224463,0.00017094,87755.0,87739.0,0.0414064]
[1766643229766,0.0114046,87754.0,87739.0,0.03]
[1766643231265,0.0114046,87754.0,87739.0,0.0414065]
[1766643231764,0.0114046,87754.0,87739.0,0.03]
[1766643232165,0.00017094,87755.0,87740.0,0.0114063]
[1766643232368,0.00017094,87755.0,87740.0,0.0414063]
[1766643232665,0.00017094,87755.0,87740.0,0.03]
[1766643234969,0.0114046,87754.0,87740.0,0.03]
[1766643242176,0.04121145,87755.0,87740.0,0.03]
[1766643242473,0.0114044,87756.0,87740.0,0.03]
[1766643242862,0.0114044,87756.0,87740.0,0.0414063]
[1766643252473,0.0114044,87756.0,87740.0,0.03]
[1766643282699,0.041237,87757.0,87740.0,0.03]
[1766643284401,0.041237,87757.0,87740.0,0.0414063]
[1766643288205,0.00017094,87757.0,87740.0,0.0414063]
[1766643288406,0.00017094,87757.0,87742.0,0.011406]
[1766643288605,0.00017094,87757.0,87742.0,0.041406]
[1766643289197,0.04106606,87765.0,87742.0,0.03]
[1766643289399,0.04106606,87767.0,87742.0,0.03]
[1766643289901,0.04106606,87768.0,87742.0,0.03]
[1766643290307,0.01157428,87764.0,87742.0,0.0414061]
[1766643290606,0.0114036,87762.0,87742.0,0.0414061]
[1766643293214,0.0114036,87762.0,87744.0,0.0114058]
[1766643293424,0.0114036,87762.0,87744.0,0.0414058]
[1766643299326,0.05246966,87762.0,87744.0,0.0414058]
[1766643302429,0.05246966,87762.0,87746.0,0.0114055]
[1766643302639,0.05246966,87762.0,87746.0,0.0414055]
[1766643302828,0.04106606,87763.0,87746.0,0.0414055]
[1766643304037,0.05246956,87763.0,87746.0,0.0414055]
[1766643304834,0.00017088,87764.0,87750.0,0.011405]
[1766643305135,0.0611224,87771.0,87750.0,0.03]
[1766643305641,0.04972,87771.0,87757.0,0.0114042]
[1766643305824,0.04972,87771.0,87759.0,0.0114038]
[1766643306024,0.04972,87771.0,87759.0,0.0414038]
[1766643306218,0.00227862,87773.0,87759.0,0.0414038]
[1766643306528,0.1997,87776.0,87760.0,0.0114037]
[1766643306836,0.0114015,87778.0,87760.0,0.0414037]
[1766643307831,0.011401,87782.0,87762.0,0.0114034]
[1766643308036,0.011401,87782.0,87762.0,0.0414034]
[1766643309222,0.0114006,87785.0,87767.0,0.0114028]
[1766643309424,0.0048494,87796.0,87767.0,0.0414028]
[1766643309425,0.0114002,87788.0,87767.0,0.0414028]
[1766643309626,0.0114005,87786.0,87767.0,0.0414028]
[1766643311128,0.0114005,87786.0,87767.0,0.03]
[1766643313136,0.0114,87789.0,87770.0,0.0114025]
[1766643313440,0.05704,87790.0,87773.0,0.0114021]
[1766643313636,0.05704,87790.0,87773.0,0.0414021]
[1766643315739,0.0113996,87793.0,87773.0,0.0414021]
[1766643317137,0.0048494,87796.0,87775.0,0.0114017]
[1766643317341,0.0048494,87796.0,87777.0,0.00017094]
[1766643317542,0.0048494,87796.0,87777.0,0.03017094]
[1766643318243,0.0113992,87795.0,87777.0,0.03017094]
[1766643319244,0.0113996,87793.0,87777.0,0.03017094]
[1766643321147,0.0113999,87791.0,87777.0,0.03017094]
[1766643321342,0.0048494,87796.0,87777.0,4e-08]
[1766643321640,0.0114014,87779.0,87777.0,4e-08]
[1766643321847,0.0114017,87777.0,87745.0,0.03070796]
[1766643322037,0.0114042,87758.0,87745.0,0.02]
[1766643322232,0.01768,87776.0,87746.0,0.05704]
[1766643322436,0.00017094,87770.0,87752.0,0.00017094]
[1766643322634,0.0114033,87764.0,87752.0,0.03017094]
[1766643322847,0.0114028,87768.0,87752.0,0.03017094]
[1766643323638,0.00017094,87770.0,87752.0,0.03017094]
[1766643327042,0.00017094,87770.0,87753.0,0.0114046]
[1766643327242,0.00017094,87770.0,87756.0,0.0114043]
[1766643327446,0.00017094,87770.0,87756.0,0.0414043]
[1766643331254,0.011402,87774.0,87756.0,0.0414043]
[1766643333650,0.0114015,87778.0,87758.0,0.0114039]
[1766643333851,0.0114015,87778.0,87758.0,0.0414039]
[1766643335348,0.0114018,87776.0,87758.0,0.03]
[1766643339658,0.011402,87774.0,87758.0,0.03]
[1766643341259,0.0114023,87772.0,87758.0,0.03]
[1766643341557,0.0114026,87770.0,87758.0,0.03]
[1766643341758,0.03256,87780.0,87758.0,0.03]
[1766643342459,0.0114026,87770.0,87758.0,0.03]
[1766643346161,0.0114022,87773.0,87758.0,0.03]
[1766643348557,0.0114017,87776.0,87758.0,0.03]
[1766643355869,0.07362606,87780.0,87759.0,0.0114038]
[1766643356069,0.07362606,87780.0,87759.0,0.0414038]
[1766643357171,0.0114021,87774.0,87759.0,0.03]
[1766643358170,0.07362606,87780.0,87759.0,0.03]
[1766643358171,0.0114016,87777.0,87759.0,0.03]
[1766643358973,0.04106606,87781.0,87759.0,0.03]
[1766643359175,0.09582706,87782.0,87759.0,0.03]
[1766643359471,0.054761,87782.0,87760.0,0.03072327]
[1766643359657,0.054761,87782.0,87760.0,0.06072327]
[1766643360365,0.054761,87782.0,87763.0,0.0114033]
[1766643360562,0.054761,87782.0,87763.0,0.0414033]
[1766643361872,0.04336,87782.0,87763.0,0.0414033]
[1766643362072,0.04106606,87784.0,87765.0,0.011403]
[1766643362272,0.04844,87784.0,87765.0,0.041403]
[1766643362772,0.0114008,87783.0,87765.0,0.041403]
[1766643365073,0.0114012,87781.0,87765.0,0.03]
[1766643365775,0.04844,87784.0,87765.0,0.03]
[1766643366276,0.0114008,87783.0,87765.0,0.03]
[1766643369381,0.04844,87784.0,87765.0,0.03]
[1766643370180,0.0114008,87783.0,87765.0,0.03]
[1766643370382,0.0114008,87783.0,87766.0,0.0114029]
[1766643370584,0.0114008,87783.0,87766.0,0.0414029]
[1766643371477,0.0114008,87783.0,87766.0,0.03]
[1766643372578,0.0114008,87783.0,87766.0,0.041403]
[1766643374187,0.0114008,87783.0,87766.0,0.03]
[1766643379290,0.04844,87784.0,87767.0,0.0114029]
[1766643379486,0.0598408,87784.0,87767.0,0.03]
[1766643382990,0.10090686,87784.0,87767.0,0.03]
[1766643384486,0.0114011,87781.0,87767.0,0.03]
[1766643386493,0.10090676,87784.0,87767.0,0.03]
[1766643386693,0.0598407,87784.0,87767.0,0.03]
[1766643387195,0.10090676,87784.0,87767.0,0.03]
[1766643390992,0.08950606,87784.0,87767.0,0.03]
[1766643391791,0.0114008,87783.0,87767.0,0.03]
[1766643398696,0.0114011,87781.0,87767.0,0.03]
[1766643400598,0.08950606,87784.0,87767.0,0.03]
[1766643400599,0.10090676,87784.0,87767.0,0.03]
[1766643407800,0.04106606,87784.0,87772.0,0.0114022]
[1766643407999,0.0114,87790.0,87772.0,0.03]
[1766643408198,0.0114,87790.0,87772.0,0.03017094]
[1766643408904,0.0114,87790.0,87773.0,0.011402]
[1766643409105,0.0114002,87788.0,87773.0,0.03]
[1766643410003,0.0114005,87786.0,87773.0,0.03]
[1766643411704,0.0114001,87789.0,87773.0,0.03]
[1766643413503,0.0114003,87787.0,87773.0,0.03]
[1766643414806,0.0114009,87783.0,87773.0,0.03]
[1766643415108,0.0113999,87790.0,87773.0,0.01]
[1766643415408,0.0114012,87780.0,87773.0,0.01]
[1766643416508,0.0113999,87790.0,87773.0,0.03]
[1766643416811,0.05246596,87790.0,87773.0,0.03]
[1766643417913,0.04106606,87788.0,87773.0,0.03]
[1766643418312,0.0114013,87780.0,87773.0,0.03]
[1766643420802,0.0114009,87783.0,87773.0,0.03]
[1766643421713,0.0114005,87786.0,87773.0,0.03]
[1766643421914,0.0114008,87784.0,87773.0,0.03]
[1766643422717,0.011401,87782.0,87773.0,0.03]
[1766643433123,0.04106606,87789.0,87773.0,0.03]
[1766643433516,0.05246586,87791.0,87773.0,0.03]
[1766643433715,0.05246586,87791.0,87774.0,0.0114019]
[1766643433915,0.05246586,87791.0,87774.0,0.0414019]
[1766643434425,0.05246586,87791.0,87776.0,0.0114016]
[1766643434610,0.05246586,87791.0,87776.0,0.0414016]
[1766643438231,0.09810606,87792.0,87776.0,0.0414016]
[1766643439336,0.10950576,87792.0,87776.0,0.0414016]
[1766643439640,0.10950576,87792.0,87776.0,0.03]
[1766643440433,0.0113999,87790.0,87776.0,0.03]
[1766643441237,0.09810606,87792.0,87776.0,0.03]
[1766643442421,0.0114003,87787.0,87776.0,0.03]
[1766643447147,0.0113999,87790.0,87776.0,0.03]
[1766643449233,0.0114002,87788.0,87776.0,0.03]
[1766643455938,0.0113998,87791.0,87776.0,0.03]
[1766643457531,0.0114001,87789.0,87776.0,0.03]
[1766643462243,0.0114003,87787.0,87776.0,0.03]
[1766643462940,0.09810606,87792.0,87776.0,0.03]
[1766643462941,0.0114006,87785.0,87776.0,0.03]
[1766643473550,6e-07,87785.0,87780.0,0.0027373]
[1766643473848,6e-07,87785.0,87780.0,0.0327373]
[1766643474446,6e-07,87785.0,87772.0,0.00017094]
[1766643474656,0.0114014,87779.0,87772.0,0.03017094]
[1766643474949,0.0114016,87777.0,87772.0,4e-08]
[1766643475156,0.0114019,87775.0,87772.0,4e-08]
[1766643475650,0.0114015,87778.0,87772.0,4e-08]
[1766643477052,0.0114011,87781.0,87772.0,4e-08]
[1766643482859,0.0114014,87779.0,87772.0,4e-08]
[1766643488460,0.011401,87782.0,87772.0,4e-08]
[1766643493369,0.0114013,87780.0,87772.0,4e-08]
[1766643505276,0.0114009,87783.0,87772.0,4e-08]
[1766643509269,0.0114011,87781.0,87772.0,4e-08]
[1766643520290,0.00017094,87784.0,87772.0,4e-08]
[1766643520691,0.0114011,87781.0,87772.0,4e-08]
[1766643521392,0.0114008,87783.0,87772.0,4e-08]
[1766643523482,0.00017094,87784.0,87772.0,4e-08]
[1766643524291,0.01157164,87784.0,87772.0,4e-08]
[1766643526397,0.011401,87782.0,87772.0,4e-08]
[1766643527593,0.00017094,87784.0,87772.0,4e-08]
[1766643527894,0.0114008,87783.0,87772.0,4e-08]
[1766643529497,0.00017094,87784.0,87772.0,4e-08]
[1766643530304,0.0114008,87783.0,87772.0,4e-08]
[1766643530794,0.00017094,87784.0,87772.0,4e-08]
[1766643532306,0.011401,87782.0,87772.0,4e-08]
[1766643536010,0.0114015,87778.0,87772.0,4e-08]
[1766643536203,0.0114018,87776.0,87766.0,0.00017094]
[1766643536413,0.0114018,87776.0,87766.0,0.01017094]
[1766643538009,0.00017094,87784.0,87766.0,0.01017094]
[1766643538410,0.011402,87774.0,87766.0,0.01017094]
[1766643539502,0.0114016,87777.0,87766.0,0.01017094]
[1766643541514,0.0114012,87780.0,87766.0,0.01017094]
[1766643542416,0.0114015,87778.0,87766.0,0.01017094]
[1766643544017,0.0114011,87781.0,87766.0,0.01017094]
[1766643544706,0.0114014,87779.0,87766.0,0.01017094]
[1766643545811,0.00017094,87784.0,87766.0,0.01017094]
[1766643548417,0.0114013,87780.0,87766.0,0.01017094]
[1766643552315,0.00017094,87784.0,87767.0,0.0114028]
[1766643552520,0.01157174,87784.0,87767.0,0.0414028]
[1766643552915,0.00017094,87784.0,87767.0,0.0414028]
[1766643553312,0.00017094,87784.0,87769.0,0.0114026]
[1766643553512,0.00017094,87784.0,87769.0,0.0414026]
[1766643554318,6e-07,87785.0,87771.0,0.0114023]
[1766643554516,6e-07,87785.0,87771.0,0.03]
[1766643557010,6e-07,87785.0,87771.0,0.0414023]
[1766643559022,6e-07,87785.0,87771.0,0.03]
[1766643559921,0.0114009,87783.0,87771.0,0.03]
[1766643564427,6e-07,87785.0,87771.0,0.03]
[1766643565323,0.0114007,87784.0,87771.0,0.03]
[1766643570233,6e-07,87785.0,87771.0,0.03]
[1766643572733,0.0114012,87785.0,87771.0,0.03]
[1766643575236,6e-07,87785.0,87771.0,0.03]
[1766643575732,0.0114014,87779.0,87771.0,0.03]
[1766643575928,6e-07,87785.0,87771.0,0.03]
[1766643576330,6e-07,87785.0,87766.0,0.00017094]
[1766643576532,6e-07,87785.0,87766.0,0.03017094]
[1766643576834,0.0114015,87778.0,87766.0,0.03017094]
[1766643577634,0.0114011,87781.0,87766.0,0.03017094]
[1766643584342,6e-07,87785.0,87766.0,0.03017094]
[1766643584532,0.0114011,87781.0,87766.0,0.03017094]
[1766643587645,0.0114014,87779.0,87766.0,0.03017094]
[1766643592942,0.011401,87782.0,87766.0,0.03017094]
[1766643593148,6e-07,87785.0,87766.0,0.03017094]
[1766643594447,6e-07,87785.0,87766.0,4e-08]
[1766643594746,0.0114009,87783.0,87766.0,4e-08]
[1766643595241,6e-07,87785.0,87766.0,4e-08]
[1766643595646,0.0114015,87778.0,87767.0,0.00017094]
[1766643595837,0.0114015,87778.0,87767.0,0.03017094]
[1766643599546,0.0114018,87776.0,87767.0,0.03017094]
[1766643599845,0.011402,87774.0,87767.0,0.03017094]
[1766643600231,0.00017094,87784.0,87763.0,4e-08]
[1766643600232,0.0114009,87783.0,87763.0,4e-08]
[1766643600432,0.0114039,87760.0,87752.0,0.04094832]
[1766643600633,0.0114035,87762.0,87752.0,0.03]
[1766643600836,0.011404,87759.0,87752.0,0.03]
[1766643601039,0.0114035,87762.0,87752.0,0.03]
[1766643603142,0.0114033,87764.0,87752.0,0.03]
[1766643603346,0.00017094,87766.0,87752.0,0.03]
[1766643603748,0.00017094,87766.0,87753.0,0.0114047]
[1766643603949,0.00017094,87766.0,87753.0,0.0414047]
[1766643606246,9.4e-07,87766.0,87753.0,0.0414047]
[1766643609153,9.4e-07,87766.0,87753.0,0.0414046]
[1766643609947,9.4e-07,87766.0,87753.0,0.03]
[1766643611247,9.4e-07,87766.0,87753.0,0.0414046]
[1766643612344,9.4e-07,87766.0,87756.0,0.0114043]
[1766643612550,9.4e-07,87766.0,87756.0,0.03]
[1766643622461,0.0114035,87763.0,87756.0,0.03]
[1766643623060,9.4e-07,87766.0,87756.0,0.03]
[1766643660594,0.02024,87771.0,87756.0,0.03]
[1766643660783,0.04252,87771.0,87756.0,0.03]
[1766643660982,0.00283,87773.0,87759.0,0.0114039]
[1766643661181,0.00283,87773.0,87759.0,0.0414039]
[1766643662001,0.04106666,87785.0,87759.0,0.03]
[1766643662186,0.05704,87778.0,87759.0,0.03]
[1766643662897,0.03404,87778.0,87759.0,0.03]
[1766643663197,0.05704,87779.0,87763.0,0.0114033]
[1766643663397,0.05704,87779.0,87763.0,0.0414033]
[1766643668102,0.0114013,87780.0,87763.0,0.0414033]
[1766643668303,0.05704,87779.0,87763.0,0.0414033]
[1766643669105,0.0684413,87780.0,87763.0,0.0414033]
[1766643669402,6e-07,87785.0,87763.0,0.0414033]
[1766643669403,0.05704,87781.0,87763.0,0.03]
[1766643669600,0.0114011,87781.0,87765.0,0.0114031]
[1766643669803,1.1e-06,87781.0,87765.0,0.0414031]
[1766643671194,0.0114022,87781.0,87765.0,0.0414031]
[1766643672105,1.1e-06,87781.0,87765.0,0.0414031]
[1766643672503,0.0416406,87785.0,87765.0,0.0414031]
[1766643672704,0.0416406,87785.0,87766.0,0.00017094]
[1766643673004,0.0416406,87785.0,87766.0,0.03017094]
[1766643673203,0.011401,87782.0,87767.0,0.0114028]
[1766643673506,0.0299812,87785.0,87769.0,0.0114026]
[1766643673690,0.0299812,87785.0,87769.0,0.0414026]
[1766643675096,0.0185806,87785.0,87769.0,0.0414026]